[Event "Titled Tuesday Blitz September 14 2021"]
[White "Baches Garcia, Guillermo"]
[Black "Deac, Bogdan-Daniel"]
[WhiteFideId "2209764"]
[BlackFideId "1226380"]
[WhiteElo "2476"]
[BlackElo "2605"]
[Result "0-1"]
[Round "01"]
[TimeControl "180+1"]
[Date "2021.09.15"]
[WhiteClock "0:00:03"]
[BlackClock "0:00:25"]

1. e4 {[%clk 0:03:00]}  g6 {[%clk 0:02:50]} 2. d4 {[%clk 0:03:00]}  Bg7 {[%clk 0:02:48]} 3. Be3 {[%clk 0:03:00]}  c5 {[%clk 0:02:46]} 4. Ne2 {[%clk 0:02:58]}  Nf6 {[%clk 0:02:44]} 5. f3 {[%clk 0:02:49]}  cxd4 {[%clk 0:02:33]} 6. Nxd4 {[%clk 0:02:49]}  d5 {[%clk 0:02:32]} 7. Bb5+ {[%clk 0:02:34]}  Nfd7 {[%clk 0:02:12]} 8. exd5 {[%clk 0:02:23]}  O-O {[%clk 0:02:07]} 9. Nc3 {[%clk 0:02:08]}  Nb6 {[%clk 0:02:06]} 10. O-O {[%clk 0:02:07]}  Nxd5 {[%clk 0:02:01]} 11. Nxd5 {[%clk 0:02:06]}  Qxd5 {[%clk 0:02:02]} 12. c4 {[%clk 0:01:55]}  Qd6 {[%clk 0:02:01]} 13. Rf2 {[%clk 0:01:37]}  Qc7 {[%clk 0:01:43]} 14. Qb3 {[%clk 0:01:23]}  Nd7 {[%clk 0:01:24]} 15. Qa3 {[%clk 0:01:11]}  Nb6 {[%clk 0:01:15]} 16. Rc1 {[%clk 0:00:47]}  a6 {[%clk 0:01:04]} 17. Ba4 {[%clk 0:00:39]}  Rd8 {[%clk 0:01:01]} 18. Nb3 {[%clk 0:00:27]}  Nxc4 {[%clk 0:00:48]} 19. Qb4 {[%clk 0:00:24]}  Nxe3 {[%clk 0:00:37]} 20. Re2 {[%clk 0:00:05]}  Nd5 {[%clk 0:00:28]} 21. Rxc7 {[%clk 0:00:03]}  Nxb4 {[%clk 0:00:29]} 22. Rexe7 {[%clk 0:00:04]}  Nd5 {[%clk 0:00:28]} 23. Rxf7 {[%clk 0:00:04]}  Nxc7 {[%clk 0:00:26]} 24. Rxg7+ {[%clk 0:00:03]}  Kxg7 {[%clk 0:00:25]} 0-1


[Site "https://www.chess.com"]

[Event "Titled Tuesday Blitz September 14 2021"]
[White "Chigaev, Maksim"]
[Black "Sadovsky, Artem"]
[WhiteFideId "4108116"]
[BlackFideId "4155840"]
[WhiteElo "2610"]
[BlackElo "2414"]
[Result "1-0"]
[Round "01"]
[TimeControl "180+1"]
[Date "2021.09.15"]
[WhiteClock "0:00:57"]
[BlackClock "0:00:16"]

1. d4 {[%clk 0:02:57]}  g6 {[%clk 0:02:51]} 2. e4 {[%clk 0:02:55]}  Bg7 {[%clk 0:02:49]} 3. Nc3 {[%clk 0:02:56]}  c6 {[%clk 0:02:48]} 4. h3 {[%clk 0:02:54]}  d5 {[%clk 0:02:48]} 5. Nf3 {[%clk 0:02:54]}  dxe4 {[%clk 0:02:46]} 6. Nxe4 {[%clk 0:02:55]}  Nd7 {[%clk 0:02:46]} 7. Bd3 {[%clk 0:02:50]}  Ngf6 {[%clk 0:02:46]} 8. Nxf6+ {[%clk 0:02:49]}  Nxf6 {[%clk 0:02:47]} 9. O-O {[%clk 0:02:50]}  O-O {[%clk 0:02:47]} 10. c3 {[%clk 0:02:47]}  Qc7 {[%clk 0:02:47]} 11. Re1 {[%clk 0:02:47]}  c5 {[%clk 0:02:47]} 12. Qe2 {[%clk 0:02:38]}  e6 {[%clk 0:02:46]} 13. Bg5 {[%clk 0:02:37]}  b6 {[%clk 0:02:44]} 14. Qe5 {[%clk 0:02:24]}  Qxe5 {[%clk 0:02:43]} 15. dxe5 {[%clk 0:02:25]}  Nd5 {[%clk 0:02:40]} 16. Be4 {[%clk 0:02:25]}  Rb8 {[%clk 0:02:32]} 17. c4 {[%clk 0:02:25]}  Nb4 {[%clk 0:02:32]} 18. a3 {[%clk 0:02:24]}  Na6 {[%clk 0:02:32]} 19. Be7 {[%clk 0:02:21]}  Re8 {[%clk 0:02:19]} 20. Bd6 {[%clk 0:02:21]}  Rb7 {[%clk 0:02:20]} 21. Rad1 {[%clk 0:02:14]}  Rd7 {[%clk 0:01:57]} 22. Bc6 {[%clk 0:02:13]}  Red8 {[%clk 0:01:58]} 23. Bxd7 {[%clk 0:02:13]}  Rxd7 {[%clk 0:01:59]} 24. Ng5 {[%clk 0:02:12]}  Bb7 {[%clk 0:01:54]} 25. b4 {[%clk 0:02:03]}  cxb4 {[%clk 0:01:46]} 26. axb4 {[%clk 0:02:04]}  h6 {[%clk 0:01:37]} 27. Nf3 {[%clk 0:02:03]}  Bf8 {[%clk 0:01:29]} 28. b5 {[%clk 0:01:56]}  Nc5 {[%clk 0:01:28]} 29. Bxc5 {[%clk 0:01:55]}  Rxd1 {[%clk 0:01:27]} 30. Rxd1 {[%clk 0:01:55]}  Bxc5 {[%clk 0:01:27]} 31. Rd7 {[%clk 0:01:37]}  Be4 {[%clk 0:01:22]} 32. Nd2 {[%clk 0:01:29]}  Bc2 {[%clk 0:01:19]} 33. Kf1 {[%clk 0:01:29]}  g5 {[%clk 0:01:07]} 34. Ke2 {[%clk 0:01:27]}  Kg7 {[%clk 0:01:05]} 35. g4 {[%clk 0:01:23]}  h5 {[%clk 0:01:04]} 36. f3 {[%clk 0:01:19]}  hxg4 {[%clk 0:00:57]} 37. hxg4 {[%clk 0:01:20]}  Kg6 {[%clk 0:00:53]} 38. Ne4 {[%clk 0:01:15]}  Bxe4 {[%clk 0:00:51]} 39. fxe4 {[%clk 0:01:16]}  f6 {[%clk 0:00:51]} 40. Kf3 {[%clk 0:01:06]}  fxe5 {[%clk 0:00:45]} 41. Rxa7 {[%clk 0:01:06]}  Kf6 {[%clk 0:00:44]} 42. Rc7 {[%clk 0:01:06]}  Bd4 {[%clk 0:00:44]} 43. c5 {[%clk 0:01:01]}  bxc5 {[%clk 0:00:17]} 44. b6 {[%clk 0:00:59]}  c4 {[%clk 0:00:18]} 45. b7 {[%clk 0:00:58]}  Ba7 {[%clk 0:00:19]} 46. Rxc4 {[%clk 0:00:58]}  Ke7 {[%clk 0:00:16]} 47. Rc8 {[%clk 0:00:58]}  Kd7 {[%clk 0:00:15]} 48. Ra8 {[%clk 0:00:57]}  Kc7 {[%clk 0:00:16]} 49. Rxa7 {[%clk 0:00:57]}  Kb8 {[%clk 0:00:16]} 50. Ra6 {[%clk 0:00:57]} 1-0


[Site "https://www.chess.com"]

[Event "Titled Tuesday Blitz September 14 2021"]
[White "Wagner, Dinara"]
[Black "Nesterov, Arseniy"]
[WhiteFideId "24157570"]
[BlackFideId "24198455"]
[WhiteElo "2260"]
[BlackElo "2494"]
[Result "0-1"]
[Round "01"]
[TimeControl "180+1"]
[Date "2021.09.15"]
[WhiteClock "0:00:01"]
[BlackClock "0:00:05"]

1. d4 {[%clk 0:02:59]}  d5 {[%clk 0:02:58]} 2. c4 {[%clk 0:02:59]}  e6 {[%clk 0:02:58]} 3. Nf3 {[%clk 0:02:59]}  Nf6 {[%clk 0:02:57]} 4. g3 {[%clk 0:02:59]}  dxc4 {[%clk 0:02:57]} 5. Bg2 {[%clk 0:02:59]}  a6 {[%clk 0:02:57]} 6. O-O {[%clk 0:02:28]}  Nc6 {[%clk 0:02:56]} 7. e3 {[%clk 0:02:29]}  Rb8 {[%clk 0:02:55]} 8. Nfd2 {[%clk 0:02:29]}  e5 {[%clk 0:02:54]} 9. Bxc6+ {[%clk 0:02:28]}  bxc6 {[%clk 0:02:55]} 10. dxe5 {[%clk 0:02:28]}  Ng4 {[%clk 0:02:56]} 11. Nxc4 {[%clk 0:02:23]}  Be6 {[%clk 0:02:56]} 12. Nbd2 {[%clk 0:02:18]}  Bb4 {[%clk 0:02:55]} 13. b3 {[%clk 0:02:11]}  h5 {[%clk 0:02:55]} 14. Qf3 {[%clk 0:01:48]}  Bxd2 {[%clk 0:02:14]} 15. Nxd2 {[%clk 0:01:07]}  Nxe5 {[%clk 0:02:13]} 16. Qe4 {[%clk 0:01:05]}  Qd5 {[%clk 0:02:05]} 17. Qxd5 {[%clk 0:00:52]}  cxd5 {[%clk 0:01:59]} 18. Bb2 {[%clk 0:00:52]}  f6 {[%clk 0:01:40]} 19. Bxe5 {[%clk 0:00:51]}  fxe5 {[%clk 0:01:41]} 20. Nf3 {[%clk 0:00:51]}  e4 {[%clk 0:01:40]} 21. Nd4 {[%clk 0:00:51]}  Bh3 {[%clk 0:01:30]} 22. Rfc1 {[%clk 0:00:51]}  O-O {[%clk 0:01:12]} 23. Rxc7 {[%clk 0:00:46]}  Rf6 {[%clk 0:01:12]} 24. Rac1 {[%clk 0:00:40]}  Rbf8 {[%clk 0:01:12]} 25. R1c2 {[%clk 0:00:40]}  g5 {[%clk 0:01:03]} 26. Re7 {[%clk 0:00:37]}  Rd8 {[%clk 0:00:23]} 27. Rcc7 {[%clk 0:00:28]}  Rg6 {[%clk 0:00:12]} 28. Nc6 {[%clk 0:00:28]}  Rf8 {[%clk 0:00:11]} 29. Ne5 {[%clk 0:00:26]}  Rh6 {[%clk 0:00:09]} 30. Rg7+ {[%clk 0:00:26]}  Kh8 {[%clk 0:00:10]} 31. Ng6+ {[%clk 0:00:22]}  Rxg6 {[%clk 0:00:10]} 32. Rxg6 {[%clk 0:00:23]}  d4 {[%clk 0:00:11]} 33. Rxg5 {[%clk 0:00:18]}  dxe3 {[%clk 0:00:05]} 34. Rxh5+ {[%clk 0:00:17]}  Kg8 {[%clk 0:00:05]} 35. Rg5+ {[%clk 0:00:08]}  Kh8 {[%clk 0:00:05]} 36. Rh5+ {[%clk 0:00:09]}  Kg8 {[%clk 0:00:06]} 37. Rxh3 {[%clk 0:00:10]}  e2 {[%clk 0:00:06]} 38. Rc1 {[%clk 0:00:08]}  Rd8 {[%clk 0:00:04]} 39. Kg2 {[%clk 0:00:01]}  e3 {[%clk 0:00:05]} 40. fxe3 {[%clk 0:00:01]}  Rd1 {[%clk 0:00:05]} 0-1


[Site "https://www.chess.com"]

[Event "Titled Tuesday Blitz September 14 2021"]
[White "Ekdyshman, Mikhail"]
[Black "Nakamura, Hikaru"]
[WhiteFideId "4149416"]
[BlackFideId "2016192"]
[WhiteElo "2256"]
[BlackElo "2884"]
[Result "0-1"]
[Round "01"]
[TimeControl "180+1"]
[Date "2021.09.15"]
[WhiteClock "0:00:20"]
[BlackClock "0:01:22"]

1. d4 {[%clk 0:02:58]}  g6 {[%clk 0:02:59]} 2. g3 {[%clk 0:02:55]}  Bg7 {[%clk 0:02:59]} 3. Bg2 {[%clk 0:02:55]}  d6 {[%clk 0:03:00]} 4. e4 {[%clk 0:02:56]}  c5 {[%clk 0:02:59]} 5. Ne2 {[%clk 0:02:55]}  cxd4 {[%clk 0:02:59]} 6. Nxd4 {[%clk 0:02:55]}  Nc6 {[%clk 0:02:59]} 7. Ne2 {[%clk 0:02:55]}  Rb8 {[%clk 0:02:55]} 8. Nbc3 {[%clk 0:02:52]}  b5 {[%clk 0:02:55]} 9. h3 {[%clk 0:02:52]}  b4 {[%clk 0:02:50]} 10. Nd5 {[%clk 0:02:51]}  e6 {[%clk 0:02:51]} 11. Ne3 {[%clk 0:02:50]}  Ba6 {[%clk 0:02:51]} 12. O-O {[%clk 0:02:47]}  Nge7 {[%clk 0:02:51]} 13. Re1 {[%clk 0:02:33]}  O-O {[%clk 0:02:51]} 14. a3 {[%clk 0:02:32]}  Bxe2 {[%clk 0:02:34]} 15. Rxe2 {[%clk 0:02:27]}  bxa3 {[%clk 0:02:33]} 16. Rxa3 {[%clk 0:02:26]}  Bxb2 {[%clk 0:02:34]} 17. Bxb2 {[%clk 0:02:23]}  Rxb2 {[%clk 0:02:35]} 18. Nc4 {[%clk 0:02:23]}  Rb4 {[%clk 0:02:34]} 19. Ne3 {[%clk 0:01:54]}  Qb8 {[%clk 0:02:29]} 20. Kh2 {[%clk 0:01:53]}  Rb1 {[%clk 0:02:28]} 21. Qd3 {[%clk 0:01:50]}  Ne5 {[%clk 0:02:27]} 22. Qa6 {[%clk 0:01:46]}  N7c6 {[%clk 0:02:24]} 23. f4 {[%clk 0:01:44]}  Rb6 {[%clk 0:02:22]} 24. Qa4 {[%clk 0:01:42]}  Nd7 {[%clk 0:02:19]} 25. Nc4 {[%clk 0:01:35]}  Nc5 {[%clk 0:02:17]} 26. Nxb6 {[%clk 0:01:26]}  Nxa4 {[%clk 0:02:16]} 27. Nxa4 {[%clk 0:01:20]}  Nd4 {[%clk 0:02:05]} 28. Rd2 {[%clk 0:01:08]}  Qb4 {[%clk 0:02:05]} 29. Rad3 {[%clk 0:01:06]}  Nb5 {[%clk 0:02:05]} 30. Nb2 {[%clk 0:01:00]}  e5 {[%clk 0:01:54]} 31. Nd1 {[%clk 0:00:54]}  a5 {[%clk 0:01:36]} 32. Ne3 {[%clk 0:00:50]}  Nc3 {[%clk 0:01:36]} 33. Nd5 {[%clk 0:00:37]}  Nxd5 {[%clk 0:01:36]} 34. Rxd5 {[%clk 0:00:38]}  a4 {[%clk 0:01:33]} 35. R2d3 {[%clk 0:00:32]}  a3 {[%clk 0:01:30]} 36. Rb3 {[%clk 0:00:30]}  Qa4 {[%clk 0:01:30]} 37. Rd1 {[%clk 0:00:28]}  Rc8 {[%clk 0:01:29]} 38. Ra1 {[%clk 0:00:27]}  Rxc2 {[%clk 0:01:29]} 39. Rbxa3 {[%clk 0:00:24]}  Qxe4 {[%clk 0:01:28]} 40. Rg1 {[%clk 0:00:24]}  exf4 {[%clk 0:01:26]} 41. Rc3 {[%clk 0:00:20]}  f3 {[%clk 0:01:22]} 0-1


[Site "https://www.chess.com"]

[Event "Titled Tuesday Blitz September 14 2021"]
[White "Grigorian, Spartak"]
[Black "Sorokin, Aleksey"]
[WhiteFideId "24661490"]
[BlackFideId "24176460"]
[WhiteElo "2405"]
[BlackElo "2476"]
[Result "0-1"]
[Round "01"]
[TimeControl "180+1"]
[Date "2021.09.15"]
[WhiteClock "0:00:39"]
[BlackClock "0:00:51"]

1. d4 {[%clk 0:02:57]}  e6 {[%clk 0:02:58]} 2. Nf3 {[%clk 0:02:57]}  c5 {[%clk 0:02:58]} 3. e3 {[%clk 0:02:55]}  Nc6 {[%clk 0:02:58]} 4. b3 {[%clk 0:02:53]}  Be7 {[%clk 0:02:56]} 5. Bb2 {[%clk 0:02:53]}  Bf6 {[%clk 0:02:56]} 6. Bd3 {[%clk 0:02:49]}  d5 {[%clk 0:02:54]} 7. O-O {[%clk 0:02:49]}  Nge7 {[%clk 0:02:54]} 8. Nbd2 {[%clk 0:02:47]}  O-O {[%clk 0:02:52]} 9. a3 {[%clk 0:02:44]}  b6 {[%clk 0:02:52]} 10. Ne5 {[%clk 0:02:38]}  Bb7 {[%clk 0:02:52]} 11. f4 {[%clk 0:02:36]}  Nf5 {[%clk 0:02:47]} 12. Bxf5 {[%clk 0:01:52]}  exf5 {[%clk 0:02:48]} 13. Qf3 {[%clk 0:01:51]}  Ne7 {[%clk 0:02:42]} 14. Qh3 {[%clk 0:01:46]}  g6 {[%clk 0:02:41]} 15. Ndf3 {[%clk 0:01:46]}  Bg7 {[%clk 0:02:39]} 16. dxc5 {[%clk 0:01:40]}  bxc5 {[%clk 0:02:38]} 17. Ng5 {[%clk 0:01:32]}  h6 {[%clk 0:02:34]} 18. Nexf7 {[%clk 0:01:18]}  Rxf7 {[%clk 0:02:32]} 19. Ne6 {[%clk 0:01:06]}  Qd6 {[%clk 0:02:16]} 20. Nxg7 {[%clk 0:01:01]}  Rxg7 {[%clk 0:02:17]} 21. Be5 {[%clk 0:01:00]}  Qe6 {[%clk 0:02:15]} 22. Qxh6 {[%clk 0:00:55]}  Rh7 {[%clk 0:02:15]} 23. Qg5 {[%clk 0:00:55]}  Nc6 {[%clk 0:02:14]} 24. Qf6 {[%clk 0:00:49]}  Re8 {[%clk 0:02:10]} 25. Qxe6+ {[%clk 0:00:45]}  Rxe6 {[%clk 0:02:10]} 26. Bb2 {[%clk 0:00:46]}  Rxe3 {[%clk 0:02:10]} 27. Rae1 {[%clk 0:00:46]}  Rhe7 {[%clk 0:02:10]} 28. Kf2 {[%clk 0:00:43]}  Rxe1 {[%clk 0:02:09]} 29. Rxe1 {[%clk 0:00:44]}  Rxe1 {[%clk 0:02:09]} 30. Kxe1 {[%clk 0:00:45]}  Kf7 {[%clk 0:02:09]} 31. g3 {[%clk 0:00:46]}  Ke6 {[%clk 0:02:10]} 32. Kd2 {[%clk 0:00:46]}  d4 {[%clk 0:02:10]} 33. c3 {[%clk 0:00:46]}  Kd5 {[%clk 0:02:10]} 34. Kd3 {[%clk 0:00:46]}  dxc3 {[%clk 0:02:09]} 35. Bxc3 {[%clk 0:00:47]}  Nd4 {[%clk 0:02:09]} 36. b4 {[%clk 0:00:46]}  Ba6+ {[%clk 0:02:09]} 37. Ke3 {[%clk 0:00:46]}  Nc2+ {[%clk 0:02:07]} 38. Kd2 {[%clk 0:00:45]}  Nxa3 {[%clk 0:02:08]} 39. bxc5 {[%clk 0:00:46]}  Nc4+ {[%clk 0:02:08]} 40. Kc1 {[%clk 0:00:44]}  Kxc5 {[%clk 0:02:08]} 41. h3 {[%clk 0:00:44]}  Kd5 {[%clk 0:02:08]} 42. g4 {[%clk 0:00:44]}  Ke4 {[%clk 0:02:07]} 43. gxf5 {[%clk 0:00:43]}  gxf5 {[%clk 0:02:07]} 44. Be1 {[%clk 0:00:38]}  Bb5 {[%clk 0:02:06]} 45. Bg3 {[%clk 0:00:36]}  a5 {[%clk 0:02:06]} 46. h4 {[%clk 0:00:36]}  Be8 {[%clk 0:02:06]} 47. Kc2 {[%clk 0:00:34]}  a4 {[%clk 0:02:05]} 48. Kc3 {[%clk 0:00:34]}  Ne3 {[%clk 0:02:05]} 49. Kb4 {[%clk 0:00:32]}  Nd5+ {[%clk 0:02:06]} 50. Ka3 {[%clk 0:00:32]}  Nxf4 {[%clk 0:02:06]} 51. Bh2 {[%clk 0:00:30]}  Nd5 {[%clk 0:02:03]} 52. h5 {[%clk 0:00:29]}  Bxh5 {[%clk 0:02:03]} 53. Kxa4 {[%clk 0:00:29]}  Be2 {[%clk 0:01:57]} 54. Kb3 {[%clk 0:00:28]}  Ne3 {[%clk 0:01:55]} 55. Ka2 {[%clk 0:00:27]}  Ng4 {[%clk 0:01:53]} 56. Bg3 {[%clk 0:00:28]}  Kf3 {[%clk 0:01:45]} 57. Bd6 {[%clk 0:00:28]}  Nf6 {[%clk 0:01:45]} 58. Be5 {[%clk 0:00:27]}  Nd5 {[%clk 0:01:44]} 59. Kb2 {[%clk 0:00:27]}  f4 {[%clk 0:01:43]} 60. Bxf4 {[%clk 0:00:27]}  Kxf4 {[%clk 0:01:44]} 61. Kb3 {[%clk 0:00:28]}  Ke4 {[%clk 0:01:43]} 62. Kc2 {[%clk 0:00:28]}  Kd4 {[%clk 0:01:42]} 63. Kd2 {[%clk 0:00:29]}  Bd3 {[%clk 0:01:41]} 64. Ke1 {[%clk 0:00:30]}  Ke3 {[%clk 0:01:30]} 65. Kd1 {[%clk 0:00:30]}  Nf4 {[%clk 0:01:23]} 66. Kc1 {[%clk 0:00:30]}  Kd4 {[%clk 0:01:22]} 67. Kb2 {[%clk 0:00:31]}  Ne2 {[%clk 0:01:19]} 68. Kb3 {[%clk 0:00:32]}  Bc4+ {[%clk 0:01:16]} 69. Kb2 {[%clk 0:00:31]}  Kd3 {[%clk 0:01:12]} 70. Kb1 {[%clk 0:00:30]}  Kc3 {[%clk 0:01:11]} 71. Ka1 {[%clk 0:00:31]}  Nd4 {[%clk 0:01:08]} 72. Kb1 {[%clk 0:00:31]}  Nc2 {[%clk 0:01:06]} 73. Kc1 {[%clk 0:00:31]}  Ba2 {[%clk 0:01:06]} 74. Kd1 {[%clk 0:00:31]}  Nd4 {[%clk 0:01:06]} 75. Ke1 {[%clk 0:00:32]}  Kd3 {[%clk 0:01:05]} 76. Kf2 {[%clk 0:00:33]}  Ne2 {[%clk 0:01:04]} 77. Kg2 {[%clk 0:00:33]}  Be6 {[%clk 0:01:01]} 78. Kf3 {[%clk 0:00:33]}  Bd7 {[%clk 0:00:59]} 79. Kf2 {[%clk 0:00:33]}  Bc6 {[%clk 0:00:59]} 80. Kf1 {[%clk 0:00:32]}  Ke3 {[%clk 0:00:58]} 81. Ke1 {[%clk 0:00:32]}  Bd5 {[%clk 0:00:57]} 82. Kd1 {[%clk 0:00:32]}  Bb3+ {[%clk 0:00:56]} 83. Ke1 {[%clk 0:00:33]}  Nf4 {[%clk 0:00:56]} 84. Kf1 {[%clk 0:00:33]}  Ba4 {[%clk 0:00:51]} 85. Ke1 {[%clk 0:00:34]}  Ng2+ {[%clk 0:00:51]} 86. Kf1 {[%clk 0:00:35]}  Kf3 {[%clk 0:00:51]} 87. Kg1 {[%clk 0:00:36]}  Kg3 {[%clk 0:00:52]} 88. Kf1 {[%clk 0:00:36]}  Bb5+ {[%clk 0:00:51]} 89. Kg1 {[%clk 0:00:37]}  Nf4 {[%clk 0:00:50]} 90. Kh1 {[%clk 0:00:38]}  Ba6 {[%clk 0:00:50]} 91. Kg1 {[%clk 0:00:38]}  Nh3+ {[%clk 0:00:51]} 92. Kh1 {[%clk 0:00:39]}  Bb7# {[%clk 0:00:51]} 0-1


[Site "https://www.chess.com"]

[Event "Titled Tuesday Blitz September 14 2021"]
[White "Grunberg, Mihai-Lucian"]
[Black "Grischuk, Alexander"]
[WhiteFideId "1204149"]
[BlackFideId "4126025"]
[WhiteElo "2364"]
[BlackElo "2757"]
[Result "0-1"]
[Round "01"]
[TimeControl "180+1"]
[Date "2021.09.15"]
[WhiteClock "0:00:02"]
[BlackClock "0:00:07"]

1. Nf3 {[%clk 0:03:00]}  Nf6 {[%clk 0:02:57]} 2. c4 {[%clk 0:03:00]}  g6 {[%clk 0:02:57]} 3. g3 {[%clk 0:02:59]}  Bg7 {[%clk 0:02:56]} 4. Bg2 {[%clk 0:03:00]}  O-O {[%clk 0:02:57]} 5. O-O {[%clk 0:03:01]}  d6 {[%clk 0:02:58]} 6. d4 {[%clk 0:03:01]}  Nbd7 {[%clk 0:02:58]} 7. Nc3 {[%clk 0:03:01]}  e5 {[%clk 0:02:58]} 8. e4 {[%clk 0:03:00]}  exd4 {[%clk 0:02:58]} 9. Nxd4 {[%clk 0:03:00]}  Re8 {[%clk 0:02:59]} 10. h3 {[%clk 0:02:59]}  Nc5 {[%clk 0:02:59]} 11. Re1 {[%clk 0:02:58]}  Bd7 {[%clk 0:02:59]} 12. Bf4 {[%clk 0:02:54]}  h6 {[%clk 0:02:55]} 13. Rb1 {[%clk 0:02:38]}  a5 {[%clk 0:02:54]} 14. b3 {[%clk 0:02:37]}  a4 {[%clk 0:02:33]} 15. e5 {[%clk 0:02:25]}  Nh5 {[%clk 0:02:32]} 16. b4 {[%clk 0:02:01]}  Nxf4 {[%clk 0:01:57]} 17. gxf4 {[%clk 0:02:00]}  dxe5 {[%clk 0:01:57]} 18. fxe5 {[%clk 0:01:53]}  Ne6 {[%clk 0:01:52]} 19. Nxe6 {[%clk 0:01:36]}  Bxe6 {[%clk 0:01:52]} 20. Qxd8 {[%clk 0:01:24]}  Raxd8 {[%clk 0:01:53]} 21. Nxa4 {[%clk 0:01:05]}  Bxc4 {[%clk 0:01:50]} 22. Bxb7 {[%clk 0:01:04]}  Bxe5 {[%clk 0:01:39]} 23. Bc6 {[%clk 0:01:02]}  Re6 {[%clk 0:01:33]} 24. Nc5 {[%clk 0:00:57]}  Rxc6 {[%clk 0:01:32]} 25. Rxe5 {[%clk 0:00:57]}  Bxa2 {[%clk 0:01:33]} 26. Ra1 {[%clk 0:00:55]}  Bc4 {[%clk 0:01:28]} 27. Ra7 {[%clk 0:00:40]}  Kf8 {[%clk 0:01:11]} 28. Nb7 {[%clk 0:00:34]}  Rd1+ {[%clk 0:01:10]} 29. Kh2 {[%clk 0:00:31]}  Rf6 {[%clk 0:01:05]} 30. Nc5 {[%clk 0:00:14]}  Rxf2+ {[%clk 0:00:45]} 31. Kg3 {[%clk 0:00:14]}  Rdf1 {[%clk 0:00:21]} 32. Rxc7 {[%clk 0:00:14]}  Kg7 {[%clk 0:00:17]} 33. Ne4 {[%clk 0:00:09]}  Rf3+ {[%clk 0:00:17]} 34. Kg2 {[%clk 0:00:09]}  Bd3 {[%clk 0:00:17]} 35. Nd6 {[%clk 0:00:06]}  h5 {[%clk 0:00:09]} 36. Ree7 {[%clk 0:00:05]}  h4 {[%clk 0:00:07]} 37. Ne8+ {[%clk 0:00:02]}  Kf8 {[%clk 0:00:07]} 0-1


[Site "https://www.chess.com"]

[Event "Titled Tuesday Blitz September 14 2021"]
[White "Gupta, Abhijeet"]
[Black "Martin Carmona, Gaston Manuel"]
[WhiteFideId "5010608"]
[BlackFideId "22284567"]
[WhiteElo "2549"]
[BlackElo "2161"]
[Result "1-0"]
[Round "01"]
[TimeControl "180+1"]
[Date "2021.09.15"]
[WhiteClock "0:00:28"]
[BlackClock "0:00:36"]

1. d4 {[%clk 0:02:56]}  Nf6 {[%clk 0:02:58]} 2. c4 {[%clk 0:02:56]}  g6 {[%clk 0:02:58]} 3. Nc3 {[%clk 0:02:56]}  Bg7 {[%clk 0:02:58]} 4. e4 {[%clk 0:02:56]}  d6 {[%clk 0:02:59]} 5. f3 {[%clk 0:02:56]}  O-O {[%clk 0:02:59]} 6. Nge2 {[%clk 0:02:57]}  c5 {[%clk 0:02:59]} 7. d5 {[%clk 0:02:57]}  e6 {[%clk 0:02:54]} 8. Ng3 {[%clk 0:02:58]}  exd5 {[%clk 0:02:54]} 9. cxd5 {[%clk 0:02:58]}  a6 {[%clk 0:02:54]} 10. a4 {[%clk 0:02:59]}  Nbd7 {[%clk 0:02:52]} 11. Be2 {[%clk 0:02:59]}  h5 {[%clk 0:02:51]} 12. Bg5 {[%clk 0:02:59]}  Ne5 {[%clk 0:02:50]} 13. O-O {[%clk 0:02:49]}  Rb8 {[%clk 0:02:35]} 14. Qd2 {[%clk 0:02:30]}  Qc7 {[%clk 0:02:26]} 15. f4 {[%clk 0:02:24]}  Ned7 {[%clk 0:02:19]} 16. e5 {[%clk 0:02:18]}  dxe5 {[%clk 0:02:19]} 17. d6 {[%clk 0:02:17]}  Qa5 {[%clk 0:01:55]} 18. fxe5 {[%clk 0:01:47]}  Nh7 {[%clk 0:01:55]} 19. Be7 {[%clk 0:01:41]}  Nxe5 {[%clk 0:01:46]} 20. Nge4 {[%clk 0:01:28]}  Bf5 {[%clk 0:01:34]} 21. Rxf5 {[%clk 0:01:24]}  gxf5 {[%clk 0:01:34]} 22. Ng3 {[%clk 0:01:24]}  f4 {[%clk 0:01:18]} 23. Nxh5 {[%clk 0:01:21]}  Qb4 {[%clk 0:01:17]} 24. Rd1 {[%clk 0:00:49]}  Nc6 {[%clk 0:01:01]} 25. Nxg7 {[%clk 0:00:45]}  Kxg7 {[%clk 0:01:01]} 26. Bxf8+ {[%clk 0:00:44]}  Nxf8 {[%clk 0:01:00]} 27. Qd5 {[%clk 0:00:42]}  Qd4+ {[%clk 0:00:59]} 28. Rxd4 {[%clk 0:00:41]}  cxd4 {[%clk 0:01:00]} 29. Bc4 {[%clk 0:00:40]}  dxc3 {[%clk 0:00:56]} 30. Qxf7+ {[%clk 0:00:40]}  Kh6 {[%clk 0:00:56]} 31. Qxf4+ {[%clk 0:00:38]}  Kg7 {[%clk 0:00:56]} 32. Qf7+ {[%clk 0:00:38]}  Kh6 {[%clk 0:00:57]} 33. bxc3 {[%clk 0:00:38]}  Ng6 {[%clk 0:00:52]} 34. Bd3 {[%clk 0:00:30]}  Nce5 {[%clk 0:00:52]} 35. Qd5 {[%clk 0:00:30]}  Nxd3 {[%clk 0:00:45]} 36. Qxd3 {[%clk 0:00:29]}  Rd8 {[%clk 0:00:46]} 37. c4 {[%clk 0:00:29]}  Kg7 {[%clk 0:00:44]} 38. c5 {[%clk 0:00:29]}  Kf7 {[%clk 0:00:45]} 39. Qd5+ {[%clk 0:00:29]}  Kf6 {[%clk 0:00:44]} 40. Qxb7 {[%clk 0:00:30]}  Ne5 {[%clk 0:00:42]} 41. Qxa6 {[%clk 0:00:30]}  Rb8 {[%clk 0:00:40]} 42. h3 {[%clk 0:00:29]}  Ke6 {[%clk 0:00:37]} 43. Kh2 {[%clk 0:00:29]}  Nd7 {[%clk 0:00:36]} 44. c6 {[%clk 0:00:28]}  Rb6 {[%clk 0:00:36]} 1-0


[Site "https://www.chess.com"]